{"text_format":"3","workbook":"xlsx","n_sheets":1,"sheets":["Личный бюджет на месяц"],"read":"whole","date_system":"1900"}

{"sheet":"Личный бюджет на месяц","index":0,"n_rows":63,"n_cols":10,"rows_kept":63,"merged":[[1,1,1,9],[2,1,2,3],[3,1,5,1],[3,2,3,3],[3,6,4,8],[3,9,4,9],[4,2,4,3],[5,2,5,3],[5,6,6,8],[5,9,6,9],[6,1,8,1],[6,2,6,3],[7,2,7,3],[7,6,8,8],[7,9,8,9],[8,2,8,3],[21,6,21,9],[22,1,22,4],[30,6,30,9],[32,1,32,4],[37,6,37,9],[39,1,39,4],[43,6,43,9],[45,1,45,4],[49,6,49,9],[53,1,53,4],[56,6,56,9],[57,6,58,8],[57,9,58,9],[59,6,60,8],[59,9,60,9],[61,6,62,8],[61,9,62,9]]}
[]
[null,"Личный бюджет на месяц"]
[]
[null,"ПЛАНОВЫЙ МЕСЯЧНЫЙ ДОХОД","Доход 1",null,{"v":2500,"d":"2,500 р."},null,"ПЛАНОВЫЙ ОСТАТОК (плановый доход минус расходы)",null,null,{"$f":"E6-J58","v":null}]
[null,null,"Дополнительный доход",null,{"v":500,"d":"500 р."}]
[null,null,"Итоговый месячный доход",null,{"$f":"SUM(E4:E5)","v":null},null,"ФАКТИЧЕСКИЙ ОСТАТОК (фактический доход минус расходы)",null,null,{"$f":"E9-J60","v":null}]
[null,"ФАКТИЧЕСКИЙ МЕСЯЧНЫЙ ДОХОД","Доход 1",null,{"v":2500,"d":"2,500 р."}]
[null,null,"Дополнительный доход",null,{"v":500,"d":"500 р."},null,"РАЗНИЦА (фактический остаток минус плановый остаток)",null,null,{"$f":"J6-J4","v":null}]
[null,null,"Итоговый месячный доход",null,{"$f":"SUM(E7:E8)","v":null}]
[]
[null,"ДОМ","Плановые затраты","Фактические затраты","Разница",null,"РАЗВЛЕЧЕНИЯ","Плановые затраты","Фактические затраты","Разница"]
[null,"Ипотека",{"v":1500,"d":"1,500 р."},{"v":1400,"d":"1,400 р."},{"$f":"[Плановые затраты]-[Фактические затраты]","v":null},null,"DVD-диски",{"v":0,"d":"0 р."},{"v":50,"d":"50 р."},{"$f":"[Плановые затраты]-[Фактические затраты]","v":null}]
[null,"Телефон",{"v":60,"d":"60 р."},{"v":100,"d":"100 р."},{"$f":"[Плановые затраты]-[Фактические затраты]","v":null},null,"Компакт-диски",null,null,{"$f":"[Плановые затраты]-[Фактические затраты]","v":null}]
[null,"Электричество",{"v":50,"d":"50 р."},{"v":60,"d":"60 р."},{"$f":"[Плановые затраты]-[Фактические затраты]","v":null},null,"Кино",null,null,{"$f":"[Плановые затраты]-[Фактические затраты]","v":null}]
[null,"Газ",{"v":200,"d":"200 р."},{"v":180,"d":"180 р."},{"$f":"[Плановые затраты]-[Фактические затраты]","v":null},null,"Концерты",null,null,{"$f":"[Плановые затраты]-[Фактические затраты]","v":null}]
[null,"Водоснабжение",null,null,{"$f":"[Плановые затраты]-[Фактические затраты]","v":null},null,"Стадион",null,null,{"$f":"[Плановые затраты]-[Фактические затраты]","v":null}]
[null,"Кабельное телевидение",null,null,{"$f":"[Плановые затраты]-[Фактические затраты]","v":null},null,"Театр",null,null,{"$f":"[Плановые затраты]-[Фактические затраты]","v":null}]
[null,"Вывоз мусора",null,null,{"$f":"[Плановые затраты]-[Фактические затраты]","v":null},null,"Прочее",null,null,{"$f":"[Плановые затраты]-[Фактические затраты]","v":null}]
[null,"Ремонт",null,null,{"$f":"[Плановые затраты]-[Фактические затраты]","v":null},null,"Прочее",null,null,{"$f":"[Плановые затраты]-[Фактические затраты]","v":null}]
[null,"Запасы",null,null,{"$f":"[Плановые затраты]-[Фактические затраты]","v":null},null,"Прочее",null,null,{"$f":"[Плановые затраты]-[Фактические затраты]","v":null}]
[null,"Прочее",null,null,{"$f":"[Плановые затраты]-[Фактические затраты]","v":null},null,"Итого",{"$f":"SUBTOTAL(109,[Плановые затраты])","v":null},{"$f":"SUBTOTAL(109,[Фактические затраты])","v":null},{"$f":"SUBTOTAL(109,[Разница])","v":null}]
[null,"Итого",{"$f":"SUBTOTAL(109,[Плановые затраты])","v":null},{"$f":"SUBTOTAL(109,[Фактические затраты])","v":null},{"$f":"SUBTOTAL(109,[Разница])","v":null}]
[{"$nulls":6},"КРЕДИТЫ","Плановые затраты","Фактические затраты","Разница"]
[null,"ТРАНСПОРТ","Плановые затраты","Фактические затраты","Разница",null,"Личный",null,null,{"$f":"[Плановые затраты]-[Фактические затраты]","v":null}]
[null,"Автомобиль",{"v":250,"d":"250 р."},{"v":250,"d":"250 р."},{"$f":"[Плановые затраты]-[Фактические затраты]","v":null},null,"Обучение",null,null,{"$f":"[Плановые затраты]-[Фактические затраты]","v":null}]
[null,"Такси и автобус",null,null,{"$f":"[Плановые затраты]-[Фактические затраты]","v":null},null,"Кредитная карта",null,null,{"$f":"[Плановые затраты]-[Фактические затраты]","v":null}]
[null,"Страховка",null,null,{"$f":"[Плановые затраты]-[Фактические затраты]","v":null},null,"Кредитная карта",null,null,{"$f":"[Плановые затраты]-[Фактические затраты]","v":null}]
[null,"Лицензии",null,null,{"$f":"[Плановые затраты]-[Фактические затраты]","v":null},null,"Кредитная карта",null,null,{"$f":"[Плановые затраты]-[Фактические затраты]","v":null}]
[null,"Бензин",null,null,{"$f":"[Плановые затраты]-[Фактические затраты]","v":null},null,"Прочее",null,null,{"$f":"[Плановые затраты]-[Фактические затраты]","v":null}]
[null,"Обслуживание",null,null,{"$f":"[Плановые затраты]-[Фактические затраты]","v":null},null,"Итого",{"$f":"SUBTOTAL(109,[Плановые затраты])","v":null},{"$f":"SUBTOTAL(109,[Фактические затраты])","v":null},{"$f":"SUBTOTAL(109,[Разница])","v":null}]
[null,"Прочее",null,null,{"$f":"[Плановые затраты]-[Фактические затраты]","v":null}]
[null,"Итого",{"$f":"SUBTOTAL(109,[Плановые затраты])","v":null},{"$f":"SUBTOTAL(109,[Фактические затраты])","v":null},{"$f":"SUBTOTAL(109,[Разница])","v":null},null,"НАЛОГИ","Плановые затраты","Фактические затраты","Разница"]
[{"$nulls":6},"Федеральный налог",null,null,{"$f":"[Плановые затраты]-[Фактические затраты]","v":null}]
[null,"СТРАХОВКА","Плановые затраты","Фактические затраты","Разница",null,"Налог штата",null,null,{"$f":"[Плановые затраты]-[Фактические затраты]","v":null}]
[null,"Дом",null,null,{"$f":"[Плановые затраты]-[Фактические затраты]","v":null},null,"Местный налог",null,null,{"$f":"[Плановые затраты]-[Фактические затраты]","v":null}]
[null,"Здоровье",null,null,{"$f":"[Плановые затраты]-[Фактические затраты]","v":null},null,"Прочее",null,null,{"$f":"[Плановые затраты]-[Фактические затраты]","v":null}]
[null,"Жизнь",null,null,{"$f":"[Плановые затраты]-[Фактические затраты]","v":null},null,"Итого",{"$f":"SUBTOTAL(109,[Плановые затраты])","v":null},{"$f":"SUBTOTAL(109,[Фактические затраты])","v":null},{"$f":"SUBTOTAL(109,[Разница])","v":null}]
[null,"Прочее",null,null,{"$f":"[Плановые затраты]-[Фактические затраты]","v":null}]
[null,"Итого",{"$f":"SUBTOTAL(109,[Плановые затраты])","v":null},{"$f":"SUBTOTAL(109,[Фактические затраты])","v":null},{"$f":"SUBTOTAL(109,[Разница])","v":null},null,"СБЕРЕЖЕНИЯ","Плановые затраты","Фактические затраты","Разница"]
[{"$nulls":6},"Сбережения",null,null,{"$f":"[Плановые затраты]-[Фактические затраты]","v":null}]
[null,"ПИТАНИЕ","Плановые затраты","Фактические затраты","Разница",null,"Инвестиции",null,null,{"$f":"[Плановые затраты]-[Фактические затраты]","v":null}]
[null,"Продукты",null,null,{"$f":"[Плановые затраты]-[Фактические затраты]","v":null},null,"Прочее",null,null,{"$f":"[Плановые затраты]-[Фактические затраты]","v":null}]
[null,"Рестораны",null,null,{"$f":"[Плановые затраты]-[Фактические затраты]","v":null},null,"Итого",{"$f":"SUBTOTAL(109,[Плановые затраты])","v":null},{"$f":"SUBTOTAL(109,[Фактические затраты])","v":null},{"$f":"SUBTOTAL(109,[Разница])","v":null}]
[null,"Прочее",null,null,{"$f":"[Плановые затраты]-[Фактические затраты]","v":null}]
[null,"Итого",{"$f":"SUBTOTAL(109,[Плановые затраты])","v":null},{"$f":"SUBTOTAL(109,[Фактические затраты])","v":null},{"$f":"SUBTOTAL(109,[Разница])","v":null},null,"БЛАГОТВОРИТЕЛЬНОСТЬ","Плановые затраты","Фактические затраты","Разница"]
[{"$nulls":6},"Фонд 1",null,null,{"$f":"[Плановые затраты]-[Фактические затраты]","v":null}]
[null,"ДОМАШНИЕ ЖИВОТНЫЕ","Плановые затраты","Фактические затраты","Разница",null,"Фонд 2",null,null,{"$f":"[Плановые затраты]-[Фактические затраты]","v":null}]
[null,"Питание",null,null,{"$f":"[Плановые затраты]-[Фактические затраты]","v":null},null,"Фонд 3",null,null,{"$f":"[Плановые затраты]-[Фактические затраты]","v":null}]
[null,"Медицина",null,null,{"$f":"[Плановые затраты]-[Фактические затраты]","v":null},null,"Итого",{"$f":"SUBTOTAL(109,[Плановые затраты])","v":null},{"$f":"SUBTOTAL(109,[Фактические затраты])","v":null},{"$f":"SUBTOTAL(109,[Разница])","v":null}]
[null,"Уход",null,null,{"$f":"[Плановые затраты]-[Фактические затраты]","v":null}]
[null,"Игрушки",null,null,{"$f":"[Плановые затраты]-[Фактические затраты]","v":null},null,"ЮРИСТЫ","Плановые затраты","Фактические затраты","Разница"]
[null,"Прочее",null,null,{"$f":"[Плановые затраты]-[Фактические затраты]","v":null},null,"Юрист",null,null,{"$f":"[Плановые затраты]-[Фактические затраты]","v":null}]
[null,"Итого",{"$f":"SUBTOTAL(109,[Плановые затраты])","v":null},{"$f":"SUBTOTAL(109,[Фактические затраты])","v":null},{"$f":"SUBTOTAL(109,[Разница])","v":null},null,"Алименты",null,null,{"$f":"[Плановые затраты]-[Фактические затраты]","v":null}]
[{"$nulls":6},"Судебные издержки",null,null,{"$f":"[Плановые затраты]-[Фактические затраты]","v":null}]
[null,"УХОД ЗА СОБОЙ","Плановые затраты","Фактические затраты","Разница",null,"Прочее",null,null,{"$f":"[Плановые затраты]-[Фактические затраты]","v":null}]
[null,"Медицина",null,null,{"$f":"[Плановые затраты]-[Фактические затраты]","v":null},null,"Итого",{"$f":"SUBTOTAL(109,[Плановые затраты])","v":null},{"$f":"SUBTOTAL(109,[Фактические затраты])","v":null},{"$f":"SUBTOTAL(109,[Разница])","v":null}]
[null,"Парикмахерская",null,null,{"$f":"[Плановые затраты]-[Фактические затраты]","v":null}]
[null,"Одежда",null,null,{"$f":"[Плановые затраты]-[Фактические затраты]","v":null},null,"ИТОГОВЫЕ ПЛАНОВЫЕ ЗАТРАТЫ",null,null,{"$f":"SUM(C22,C32,C39,C45,C53,C63,H21,H30,H37,H43,H49,H56)","v":null}]
[null,"Химчистка",null,null,{"$f":"[Плановые затраты]-[Фактические затраты]","v":null}]
[null,"Спортзал",null,null,{"$f":"[Плановые затраты]-[Фактические затраты]","v":null},null,"ИТОГОВЫЕ ФАКТИЧЕСКИЕ ЗАТРАТЫ",null,null,{"$f":"SUM(D22,D32,D39,D45,D53,D63,I21,I30,I37,I43,I49,I56)","v":null}]
[null,"Организационные сборы",null,null,{"$f":"[Плановые затраты]-[Фактические затраты]","v":null}]
[null,"Прочее",null,null,{"$f":"[Плановые затраты]-[Фактические затраты]","v":null},null,"ИТОГОВАЯ РАЗНИЦА",null,null,{"$f":"SUM(E22,E32,E39,E45,E53,E63,J21,J30,J37,J43,J49,J56)","v":null}]
[null,"Итого",{"$f":"SUBTOTAL(109,[Плановые затраты])","v":null},{"$f":"SUBTOTAL(109,[Фактические затраты])","v":null},{"$f":"SUBTOTAL(109,[Разница])","v":null}]